bitfinex-derivatives/quotes_SOLF0:USTF0_20260207
["timestamp","ask_amount","ask_price","bid_price","bid_amount"]
[1770500167042,43.54767935,88.879,88.845,41.17401819]
[1770500167241,52.05687923,88.878,88.845,41.17401819]
[1770500167445,52.05687923,88.878,88.796,33.81]
[1770500167446,43.54767935,88.869,88.814,41.17401819]
[1770500167637,43.54767935,88.867,88.814,41.17401819]
[1770500167838,43.54767935,88.865,88.814,41.17401819]
[1770500168041,43.54767935,88.863,88.814,41.17401819]
[1770500168335,43.54767935,88.859,88.814,41.17401819]
[1770500168541,43.54767935,88.857,88.814,41.17401819]
[1770500168743,43.54767935,88.855,88.814,41.17401819]
[1770500168943,43.54767935,88.853,88.814,41.17401819]
[1770500169144,43.54767935,88.851,88.814,41.17401819]
[1770500169340,43.54767935,88.849,88.814,41.17401819]
[1770500169541,8.50919988,88.848,88.814,41.17401819]
[1770500169745,8.50919988,88.847,88.814,41.17401819]
[1770500170041,43.54767935,88.849,88.814,41.17401819]
[1770500170235,8.50934968,88.848,88.814,41.17401819]
[1770500170440,43.54767935,88.849,88.814,41.17401819]
[1770500170441,8.50934968,88.847,88.814,41.17401819]
[1770500170642,43.54767935,88.849,88.814,41.17401819]
[1770500170841,52.0553155,88.848,88.803,41.17401819]
[1770500171042,43.54767935,88.846,88.803,41.17401819]
[1770500171248,47.23165303,88.84,88.803,41.17401819]
[1770500171453,52.0553155,88.839,88.803,41.17401819]
[1770500171649,13.87606587,88.87,88.766,434.67735583]
[1770500171650,42.26331571,88.829,88.771,44.39354339]
[1770500171841,42.26331571,88.827,88.771,44.39354339]
[1770500172040,42.26331571,88.826,88.771,44.39354339]
[1770500172943,42.26331571,88.819,88.771,44.39354339]
[1770500173141,8.50083098,88.818,88.771,44.39354339]
[1770500173347,42.26331571,88.831,88.781,44.39354339]
[1770500173550,10.1381,88.835,88.781,44.39354339]
[1770500173551,42.26331571,88.83,88.781,44.39354339]
[1770500174643,45.94728939,88.83,88.781,44.39354339]
[1770500178054,20.92283672,88.879,88.766,434.67735583]
[1770500178055,42.26331571,88.839,88.791,44.39354339]
[1770500179440,42.26331571,88.839,88.79,3.68397368]
[1770500179441,42.26331571,88.839,88.801,44.39354339]
[1770500186060,42.26331571,88.839,88.8,3.68397368]
[1770500186258,42.26331571,88.839,88.79,48.07751707]
[1770500186858,42.26331571,88.839,88.766,434.67735583]
[1770500186859,42.26331571,88.829,88.78,48.07751707]
[1770500187961,42.26331571,88.829,88.79,3.68397368]
[1770500188159,42.26331571,88.829,88.767,44.39354339]
[1770500188362,42.26331571,88.829,88.77,3.68397368]
[1770500189154,42.26331571,88.829,88.77,48.07751707]
[1770500189860,42.26331571,88.827,88.77,48.07751707]
[1770500190059,42.26331571,88.819,88.77,48.07751707]
[1770500190265,42.26331571,88.819,88.77,44.39354339]
[1770500191262,42.26331571,88.819,88.77,48.07751707]
[1770500192667,10.46141836,88.848,88.77,48.07751707]
[1770500192668,42.26331571,88.809,88.77,44.39354339]
[1770500195871,42.78755576,88.821,88.781,42.75280834]
[1770500199773,42.78755576,88.821,88.79,3.68397368]
[1770500201171,42.78755576,88.821,88.781,42.75280834]
[1770500203678,42.78755576,88.819,88.769,42.75280834]
[1770500206084,42.78755576,88.809,88.758,42.75280834]
[1770500206274,157.6513,88.864,88.686,20.3101]
[1770500206275,42.78755576,88.799,88.747,42.75280834]
[1770500207681,42.78755576,88.799,88.76,46.43678202]
[1770500207878,10.46141836,88.833,88.697,33.81]
[1770500207879,42.78755576,88.81,88.77,46.43678202]
[1770500211187,42.78755576,88.81,88.78,3.68397368]
[1770500212690,42.78755576,88.81,88.77,46.43678202]
[1770500212987,42.78755576,88.809,88.77,46.43678202]
[1770500213392,42.78755576,88.809,88.77,46.4429803]
[1770500213683,8.45336687,88.808,88.77,46.4429803]
[1770500213989,8.45336687,88.807,88.77,46.4429803]
[1770500214191,8.45327115,88.806,88.77,46.4429803]
[1770500214389,8.45327115,88.805,88.77,46.4429803]
[1770500214692,42.78755576,88.809,88.77,46.4429803]
[1770500214888,51.24264362,88.808,88.77,46.4429803]
[1770500215094,8.45508786,88.807,88.77,46.4429803]
[1770500215387,8.45508786,88.806,88.77,46.4429803]
[1770500215586,8.45508786,88.805,88.77,46.4429803]
[1770500215787,8.45508786,88.804,88.77,46.4429803]
[1770500215992,42.78755576,88.808,88.77,46.4429803]
[1770500216192,8.45549862,88.807,88.77,46.4429803]
[1770500216489,8.45549862,88.806,88.77,46.4429803]
[1770500216691,42.78755576,88.808,88.77,46.4429803]
[1770500221394,51.24350555,88.807,88.77,46.4429803]
[1770500221595,42.78755576,88.805,88.76,46.4429803]
[1770500221794,42.78755576,88.803,88.76,46.4429803]
[1770500221989,42.78755576,88.801,88.76,46.4429803]
[1770500222190,42.78755576,88.799,88.76,46.4429803]
[1770500222787,42.78755576,88.797,88.76,42.75280834]
[1770500222981,8.45585213,88.796,88.76,42.75280834]
[1770500223197,51.24340789,88.795,88.76,42.75280834]
[1770500223493,42.78755576,88.793,88.75,3.69017196]
[1770500223695,42.78755576,88.793,88.75,46.4429803]
[1770500224789,42.78755576,88.793,88.75,42.75280834]
[1770500225292,13.83217196,88.8,88.75,42.75280834]
[1770500225293,42.78755576,88.791,88.75,42.75280834]
[1770500225494,40.64446642,88.789,88.75,42.75280834]
[1770500226200,40.64446642,88.799,88.76,3.69017196]
[1770500226397,40.64446642,88.797,88.76,3.69017196]
[1770500226696,49.1106723,88.796,88.76,3.69017196]
[1770500226901,8.46620588,88.795,88.75,46.4429803]
[1770500227091,8.46620588,88.794,88.75,46.4429803]
[1770500227287,40.64446642,88.796,88.75,46.4429803]
[1770500227288,8.46620588,88.793,88.75,46.4429803]
[1770500227591,8.46620588,88.792,88.75,46.4429803]
[1770500227902,8.46620588,88.791,88.76,3.69017196]
[1770500228098,40.64446642,88.796,88.76,3.69017196]
[1770500228300,8.47007893,88.795,88.76,3.69017196]
[1770500228599,8.47007893,88.794,88.76,3.69017196]
[1770500228799,8.47007893,88.793,88.76,3.69017196]
[1770500229002,8.47007893,88.792,88.76,3.69017196]
[1770500229201,8.47007893,88.791,88.76,3.69017196]
[1770500229400,8.47007893,88.79,88.76,3.69017196]
[1770500229595,40.64446642,88.796,88.76,3.69017196]
[1770500229794,8.47421437,88.795,88.76,3.69017196]
[1770500229991,8.47421437,88.794,88.76,3.69017196]
[1770500230195,8.47421437,88.793,88.76,3.69017196]
[1770500230397,8.47421437,88.792,88.76,3.69017196]
[1770500230598,8.47421437,88.791,88.75,46.4429803]
[1770500230903,8.47421437,88.79,88.75,46.4429803]
[1770500231202,8.47421437,88.789,88.75,46.4429803]
[1770500231397,8.47421437,88.788,88.75,46.4429803]
[1770500231704,40.64446642,88.796,88.75,46.4429803]
[1770500231902,49.42196613,88.795,88.75,46.4429803]
[1770500232103,40.94181327,88.793,88.75,46.4429803]
[1770500232302,8.48015286,88.792,88.75,46.4429803]
[1770500232497,40.94181327,88.793,88.75,46.4429803]
[1770500232498,8.48015286,88.791,88.75,46.4429803]
[1770500232698,8.48015286,88.79,88.75,46.4429803]
[1770500232897,8.48015286,88.789,88.75,46.4429803]
[1770500233105,8.48015286,88.788,88.75,46.4429803]
[1770500233303,40.94181327,88.793,88.75,46.4429803]
[1770500233498,49.41913853,88.792,88.75,46.4429803]
[1770500233702,8.47732526,88.791,88.75,46.4429803]
[1770500233902,8.47732526,88.79,88.75,46.4429803]
[1770500234104,8.47732526,88.789,88.75,46.4429803]
[1770500234307,8.47732526,88.788,88.75,46.4429803]
[1770500234604,40.94181327,88.792,88.75,46.4429803]
[1770500234801,8.47627265,88.791,88.75,46.4429803]
[1770500235005,8.47627265,88.79,88.75,46.4429803]
[1770500235303,8.47627265,88.789,88.75,46.4429803]
[1770500235602,8.47627265,88.788,88.75,46.4429803]
[1770500235802,40.94181327,88.792,88.75,46.4429803]
[1770500236003,8.47593787,88.791,88.75,46.4429803]
[1770500236204,8.47593787,88.79,88.75,46.4429803]
[1770500236406,8.47593787,88.789,88.75,46.4429803]
[1770500236712,8.47593787,88.788,88.75,46.4429803]
[1770500237004,8.47593787,88.787,88.75,46.4429803]
[1770500237300,40.94181327,88.792,88.75,46.4429803]
[1770500237507,8.47247124,88.791,88.75,46.4429803]
[1770500237804,8.47247124,88.79,88.75,46.4429803]
[1770500238009,8.47247124,88.789,88.75,46.4429803]
[1770500238201,40.94181327,88.792,88.75,46.4429803]
[1770500238508,49.4142201,88.791,88.75,46.4429803]
[1770500238805,40.94181327,88.789,88.75,46.4429803]
[1770500239509,40.94181327,88.787,88.735,52.82281764]
[1770500239809,40.94181327,88.779,88.735,42.67351764]
[1770500240006,40.94181327,88.777,88.735,42.67351764]
[1770500240202,40.94181327,88.775,88.735,42.67351764]
[1770500240505,40.94181327,88.773,88.735,42.67351764]
[1770500240710,40.94181327,88.771,88.735,42.67351764]
[1770500241010,40.94181327,88.769,88.735,42.67351764]
[1770500244100,3.69017196,88.78,88.721,42.67351764]
[1770500244101,40.94181327,88.767,88.721,42.67351764]
[1770500244309,40.94181327,88.765,88.721,42.67351764]
[1770500244506,40.94181327,88.763,88.721,42.67351764]
[1770500244708,40.94181327,88.761,88.721,42.67351764]
[1770500245007,40.94181327,88.759,88.721,42.67351764]
[1770500245205,49.52665526,88.758,88.721,42.67351764]
[1770500245404,8.58484199,88.757,88.721,34.34583279]
[1770500245610,8.58484199,88.756,88.721,34.34583279]
[1770500245808,8.58484199,88.755,88.721,34.34583279]
[1770500246011,8.58484199,88.754,88.721,34.34583279]
[1770500246212,40.94181327,88.758,88.721,34.34583279]
[1770500246413,10.146,88.765,88.721,34.34583279]
[1770500246414,8.5767452,88.757,88.721,34.34583279]
[1770500246621,40.94181327,88.768,88.73,3.69017196]
[1770500246805,8.57773373,88.767,88.73,3.69017196]
[1770500247113,8.57773373,88.766,88.73,3.69017196]
[1770500247310,40.94181327,88.764,88.73,3.69017196]
[1770500247517,40.94181327,88.753,88.7,3.69017196]
[1770500247810,13.87606587,88.782,88.7,3.69017196]
[1770500247811,40.94181327,88.749,88.7,3.69017196]
[1770500248012,40.94181327,88.747,88.7,3.69017196]
[1770500248310,40.94181327,88.745,88.692,42.67351764]
[1770500248510,40.94181327,88.743,88.692,42.67351764]
[1770500249411,40.94181327,88.738,88.68,3.69017196]
[1770500249706,40.94181327,88.729,88.68,3.69017196]
[1770500253509,10.46141836,88.761,88.652,1.96153033]
[1770500253510,40.94181327,88.741,88.701,42.67351764]
[1770500253715,40.94181327,88.761,88.72,3.69017196]
[1770500253917,40.94181327,88.759,88.72,3.69017196]
[1770500254213,40.94181327,88.759,88.696,10.1538]
[1770500254519,40.94181327,88.749,88.69,3.69017196]
[1770500255018,40.94181327,88.749,88.652,1.96153033]
[1770500255019,40.94181327,88.749,88.7,3.69017196]
[1770500256114,41.3250461,88.739,88.69,3.69017196]
[1770500256307,41.3250461,88.739,88.68,3.69017196]
[1770500257204,41.3250461,88.739,88.7,3.69017196]
[1770500257404,41.3250461,88.739,88.71,3.69017196]
[1770500267917,41.3250461,88.739,88.695,42.78908769]
[1770500267918,41.3250461,88.739,88.7,3.69017196]
[1770500268118,41.3250461,88.739,88.69,3.69017196]
[1770500269125,51.4740461,88.739,88.69,3.69017196]
[1770500270327,41.3250461,88.739,88.701,42.78908769]
[1770500270623,41.3250461,88.739,88.71,3.69017196]
[1770500273530,41.3250461,88.739,88.71,3.69519853]
[1770500274444,41.3250461,88.739,88.701,42.78908769]
[1770500276135,51.4727461,88.75,88.701,42.78908769]
[1770500276337,51.4727461,88.75,88.71,3.69519853]
[1770500278347,41.3250461,88.75,88.71,3.69519853]
[1770500279134,41.3250461,88.748,88.71,3.69519853]
[1770500281149,41.3250461,88.748,88.72,3.69519853]
[1770500281350,41.3250461,88.76,88.72,3.69519853]
[1770500281541,49.81781213,88.759,88.72,3.69519853]
[1770500281848,49.81781213,88.758,88.72,3.69519853]
[1770500282045,41.3250461,88.758,88.72,3.69519853]
[1770500282349,8.49821397,88.757,88.72,3.69519853]
[1770500282648,41.3250461,88.758,88.71,42.78908769]
[1770500282649,41.3250461,88.758,88.73,3.69519853]
[1770500282838,8.4956514,88.757,88.73,3.69519853]
[1770500283148,8.4956514,88.756,88.73,3.69519853]
[1770500283344,41.3250461,88.758,88.73,3.69519853]
[1770500283345,8.4956514,88.755,88.73,3.69519853]
[1770500283550,41.3250461,88.758,88.73,3.69519853]
[1770500283850,8.50311689,88.757,88.73,3.69519853]
[1770500284148,8.50311689,88.756,88.73,3.69519853]
[1770500284347,8.50311689,88.755,88.73,3.69519853]
[1770500284549,8.50311689,88.754,88.73,3.69519853]
[1770500284748,41.3250461,88.758,88.73,3.69519853]
[1770500284950,8.50960335,88.757,88.73,3.69519853]
[1770500285147,41.3250461,88.758,88.73,3.69519853]
[1770500285345,10.46141836,88.777,88.74,3.69519853]
[1770500285545,10.46141836,88.782,88.74,3.69519853]
[1770500286244,10.46141836,88.783,88.74,3.69519853]
[1770500287057,10.1431,88.791,88.74,3.69519853]
[1770500287449,43.55651053,88.79,88.74,3.69519853]
[1770500288153,43.55651053,88.79,88.75,3.69519853]
[1770500291855,43.55651053,88.79,88.742,39.86540732]
[1770500291856,43.55651053,88.79,88.76,3.69519853]
[1770500294159,42.86941829,88.803,88.77,3.69519853]
[1770500294366,42.86941829,88.803,88.78,3.69519853]
[1770500295458,42.86941829,88.803,88.77,3.69519853]
[1770500299463,42.86941829,88.803,88.763,43.60664222]
[1770500299464,42.86941829,88.779,88.719,43.60664222]
[1770500299662,10.46141836,88.825,88.717,424.67521997]
[1770500299663,42.86941829,88.769,88.72,3.69519853]
[1770500300561,42.86941829,88.769,88.71,3.69519853]
[1770500300766,53.01501829,88.769,88.71,3.69519853]
[1770500301464,42.86941829,88.769,88.716,10.1515]
[1770500301668,42.86941829,88.769,88.652,35.78153033]
[1770500301669,42.86941829,88.769,88.73,3.69519853]
[1770500302067,42.86941829,88.769,88.74,3.69519853]
[1770500304268,42.86941829,88.769,88.73,47.30184075]
[1770500311769,42.86941829,88.782,88.741,43.60664222]
[1770500311975,42.86941829,88.794,88.751,43.60664222]
[1770500312468,42.86941829,88.769,88.71,47.30184075]
[1770500312767,42.86941829,88.759,88.71,43.60664222]
[1770500313477,42.86941829,88.759,88.71,47.30184075]
[1770500313981,42.86941829,88.789,88.73,3.69519853]
[1770500314168,42.86941829,88.769,88.715,43.60664222]
[1770500317379,53.01501829,88.769,88.715,43.60664222]
[1770500320176,42.86941829,88.769,88.72,3.69519853]
[1770500321485,13.87606587,88.804,88.652,29.56487157]
[1770500321486,42.36684521,88.785,88.74,3.69519853]
[1770500321781,42.36684521,88.783,88.74,3.69519853]
[1770500321982,42.36684521,88.779,88.73,47.86785219]
[1770500322175,42.36684521,88.777,88.73,47.86785219]
[1770500322481,42.36684521,88.775,88.73,44.17265366]
[1770500322681,42.36684521,88.773,88.73,44.17265366]
[1770500322880,42.36684521,88.771,88.73,44.17265366]
[1770500323084,50.80918856,88.77,88.73,44.17265366]
[1770500323279,8.44234335,88.769,88.73,44.17265366]
[1770500323481,42.36684521,88.77,88.73,44.17265366]
[1770500323782,42.36684521,88.783,88.74,47.86785219]
[1770500323979,50.81242165,88.782,88.74,47.86785219]
[1770500324181,50.81242165,88.781,88.74,47.86785219]
[1770500324479,8.44557644,88.78,88.74,47.86785219]
[1770500324680,8.44557644,88.779,88.74,47.86785219]
[1770500324881,8.44557644,88.778,88.74,47.86785219]
[1770500325084,8.44557644,88.777,88.74,47.86785219]
[1770500325282,8.44946591,88.776,88.74,47.86785219]
[1770500325478,42.36684521,88.78,88.74,47.86785219]
[1770500325685,42.36684521,88.778,88.74,47.86785219]
[1770500325885,42.36684521,88.776,88.729,44.17265366]
[1770500326085,42.36684521,88.774,88.729,44.17265366]
[1770500326284,42.36684521,88.772,88.729,44.17265366]
[1770500326484,42.36684521,88.77,88.729,44.17265366]
[1770500326681,42.36684521,88.768,88.729,44.17265366]
[1770500326886,42.36684521,88.766,88.72,3.69519853]
[1770500327080,42.36684521,88.759,88.705,44.17265366]
[1770500327287,42.36684521,88.757,88.71,3.69519853]
[1770500327479,13.87606587,88.779,88.71,3.69519853]
[1770500327480,42.36684521,88.755,88.71,3.69519853]
[1770500327680,42.36684521,88.753,88.71,3.69519853]
[1770500327883,42.36684521,88.751,88.71,3.69519853]
[1770500328582,42.36684521,88.751,88.658,21.03874642]
[1770500328583,42.36684521,88.729,88.68,3.69519853]
[1770500328778,42.36684521,88.729,88.69,3.69519853]
[1770500328987,42.36684521,88.729,88.7,3.69519853]
[1770500329290,42.36684521,88.742,88.71,3.69519853]
[1770500330191,42.36684521,88.758,88.72,3.69519853]
[1770500330592,42.36684521,88.758,88.712,44.17265366]
[1770500333088,42.36684521,88.758,88.71,3.69519853]
[1770500333392,42.36684521,88.756,88.7,47.86785219]
[1770500333884,42.36684521,88.754,88.7,47.86785219]
[1770500335189,42.36684521,88.754,88.71,47.86785219]
[1770500335495,42.36684521,88.754,88.72,3.6939238]
[1770500336394,42.36684521,88.754,88.71,47.86657746]
[1770500341099,42.36684521,88.752,88.71,44.17265366]
[1770500341296,42.36684521,88.75,88.7,3.6939238]
[1770500341598,42.36684521,88.748,88.7,3.6939238]
[1770500341800,42.36684521,88.746,88.7,3.6939238]
[1770500342002,42.36684521,88.744,88.7,47.86657746]
[1770500342300,8.45563375,88.743,88.7,47.86657746]
[1770500342493,8.45563375,88.742,88.7,47.86657746]
[1770500342693,42.36684521,88.744,88.7,47.86657746]
[1770500342895,8.46928533,88.743,88.7,47.86657746]
[1770500343099,8.46928533,88.742,88.7,47.86657746]
[1770500343302,42.36684521,88.74,88.71,3.6939238]
[1770500345993,42.36684521,88.74,88.7,47.86657746]
[1770500346193,51.03956777,88.739,88.7,47.86657746]
[1770500346402,42.5670897,88.739,88.7,47.86657746]
[1770500346905,42.5670897,88.739,88.7,3.6939238]
[1770500347094,3.6939238,88.71,88.65,3.6939238]
[1770500347294,42.5670897,88.689,88.63,42.23587699]
[1770500347492,42.5670897,88.689,88.65,3.6939238]
[1770500349107,42.5670897,88.689,88.631,10.1612]
[1770500349108,42.5670897,88.689,88.64,45.92980079]
[1770500349507,42.5670897,88.689,88.63,3.6939238]
[1770500349704,42.5670897,88.689,88.63,45.92980079]
[1770500350205,42.5670897,88.669,88.614,42.23587699]
[1770500350407,42.5670897,88.669,88.62,3.6939238]
[1770500350996,42.5670897,88.669,88.614,42.23587699]
[1770500353810,45.25016637,88.682,88.616,44.13931461]
[1770500354711,45.25016637,88.682,88.627,44.13931461]
[1770500354909,45.25016637,88.682,88.611,44.13931461]
[1770500355810,45.25016637,88.682,88.615,44.13931461]
[1770500356010,45.25016637,88.682,88.631,44.13931461]
[1770500356808,45.25016637,88.682,88.633,44.13931461]
[1770500357711,45.25016637,88.682,88.63,9.25660347]
[1770500357712,45.25016637,88.682,88.635,44.13931461]
[1770500359809,45.25016637,88.682,88.636,10.1607]
[1770500360016,45.25016637,88.682,88.637,44.13931461]
[1770500360709,45.25016637,88.682,88.617,44.13931461]
[1770500361407,55.40576637,88.682,88.617,44.13931461]
[1770500362401,45.25016637,88.667,88.617,44.13931461]
[1770500364118,45.25016637,88.667,88.62,44.13931461]
[1770500365509,45.25016637,88.667,88.592,44.13931461]
[1770500366811,45.25016637,88.663,88.596,44.13931461]
[1770500367020,45.25016637,88.663,88.601,44.13931461]
[1770500368713,45.25016637,88.663,88.609,44.13931461]
[1770500369519,45.25016637,88.663,88.582,44.13931461]
[1770500369911,45.25016637,88.663,88.607,44.13931461]
[1770500370424,45.25016637,88.663,88.581,44.13931461]
[1770500370619,55.40786637,88.663,88.593,44.13931461]
[1770500371520,55.40786637,88.663,88.61,3.70302208]
[1770500372022,45.25016637,88.663,88.62,3.70302208]
[1770500374320,45.25016637,88.663,88.63,3.70302208]
[1770500377923,45.20519214,88.639,88.58,3.70302208]
[1770500378126,45.20519214,88.629,88.58,3.70302208]
[1770500378324,45.20519214,88.629,88.59,3.70302208]
[1770500381223,45.20519214,88.644,88.6,3.70302208]
[1770500381828,45.20519214,88.639,88.591,44.34725673]
[1770500382221,45.20519214,88.639,88.6,3.70302208]
[1770500383631,45.20519214,88.639,88.591,44.34725673]
[1770500385531,45.20519214,88.619,88.56,473.06658032]
[1770500385732,45.20519214,88.619,88.561,44.34725673]
[1770500386822,55.36809214,88.617,88.561,44.34725673]
[1770500390029,45.20519214,88.609,88.561,44.34725673]
[1770500393133,45.20519214,88.609,88.508,33.82]
[1770500393134,3.70302208,88.57,88.51,78.47558821]
[1770500393431,8.45760094,88.569,88.51,82.17861029]
[1770500393636,3.70302208,88.58,88.521,78.47558821]
[1770500393831,8.47056207,88.579,88.521,78.47558821]
[1770500394035,8.47056207,88.578,88.521,78.47558821]
[1770500394237,8.47056207,88.577,88.521,78.47558821]
[1770500394438,8.47056207,88.576,88.521,78.47558821]
[1770500394639,8.47056207,88.575,88.521,78.47558821]
[1770500394937,3.70302208,88.57,88.521,78.47558821]
[1770500395329,3.70302208,88.56,88.508,78.47558821]
[1770500396431,13.87262208,88.56,88.508,78.47558821]
[1770500396829,3.70302208,88.55,88.508,78.47558821]
[1770500397437,3.71269373,88.55,88.508,78.47558821]
[1770500397633,3.71269373,88.54,88.493,78.47558821]
[1770500397838,10.171,88.547,88.493,78.47558821]
[1770500398236,10.171,88.547,88.478,10.1788]
[1770500398237,3.71269373,88.5,88.457,78.47558821]
[1770500398538,3.71269373,88.53,88.48,3.71269373]
[1770500399038,3.71269373,88.53,88.47,82.18828194]
[1770500399740,3.71269373,88.51,88.46,3.71269373]
[1770500399929,3.71269373,88.51,88.455,78.47558821]
[1770500400643,10.1754,88.509,88.455,78.47558821]
[1770500402432,9.28999872,88.54,88.455,78.47558821]
[1770500402641,8.41081766,88.555,88.455,78.47558821]
[1770500402835,8.41081766,88.554,88.455,78.47558821]
[1770500403035,8.41081766,88.553,88.455,78.47558821]
[1770500403335,8.41081766,88.552,88.455,78.47558821]
[1770500403639,9.28999872,88.56,88.455,78.47558821]
[1770500403940,10.1719,88.539,88.468,78.47558821]
[1770500404131,9.28999872,88.54,88.441,78.47558821]
[1770500405438,10.1743,88.518,88.443,88.65848821]
[1770500406634,10.1743,88.518,88.455,78.56515463]
[1770500407744,10.1743,88.518,88.458,78.56515463]
[1770500409440,10.1743,88.518,88.461,78.56515463]
[1770500410947,158.158,88.58,88.46,10.1809]
[1770500410948,10.1726,88.533,88.467,78.56515463]
[1770500411556,10.1713,88.544,88.469,78.56515463]
[1770500412750,10.1713,88.544,88.475,78.54666462]
[1770500413255,9.28999872,88.56,88.475,78.54666462]
[1770500414149,10.1736,88.525,88.475,78.54666462]
[1770500418352,10.1719,88.539,88.477,78.54666462]
[1770500419856,10.1719,88.539,88.479,78.54666462]
[1770500421151,10.173,88.53,88.479,78.54666462]
[1770500421655,8.40514015,88.558,88.479,78.54666462]
[1770500421958,8.40514015,88.557,88.479,78.54666462]
[1770500422252,8.40514015,88.556,88.479,78.54666462]
[1770500422452,8.40514015,88.555,88.479,78.54666462]
[1770500422657,8.40514015,88.554,88.479,78.54666462]
[1770500422857,10.1744,88.518,88.479,78.54666462]
[1770500424457,8.41054279,88.558,88.481,78.54666462]
[1770500424760,19.65738679,88.58,88.481,78.54666462]
[1770500424958,8.41008335,88.579,88.481,78.54666462]
[1770500425158,8.41008335,88.578,88.481,78.54666462]
[1770500425360,3.71186716,88.57,88.51,3.71186716]
[1770500425559,10.1705,88.552,88.51,3.71186716]
[1770500425761,3.71186716,88.56,88.503,78.54666462]
[1770500426466,10.1703,88.553,88.51,3.71186716]
[1770500426666,3.71186716,88.56,88.51,3.71186716]
[1770500426867,3.71186716,88.54,88.477,78.54666462]
[1770500427068,10.1726,88.533,88.477,78.54666462]
[1770500427558,9.28729287,88.55,88.477,78.54666462]
[1770500427765,8.43044259,88.549,88.477,78.54666462]
[1770500427960,10.1739,88.521,88.477,78.54666462]
[1770500428169,10.36738807,88.549,88.376,158.5213]
[1770500428369,10.36738807,88.54,88.43,9.28729287]
[1770500428568,8.43583676,88.539,88.43,9.28729287]
[1770500428761,10.176,88.503,88.433,10.184]
[1770500428961,8.43583676,88.537,88.433,10.184]
[1770500429267,8.43583676,88.536,88.433,10.184]
[1770500429575,8.43583676,88.535,88.433,10.184]
[1770500429762,10.1747,88.515,88.433,10.184]
[1770500430167,10.1747,88.515,88.44,70.37849935]
[1770500431164,10.1761,88.503,88.44,70.37849935]
[1770500433868,10.1761,88.503,88.44,80.56169935]
[1770500434269,10.1761,88.503,88.44,70.37849935]
[1770500436176,8.48057551,88.502,88.44,70.37849935]
[1770500436371,8.48057551,88.501,88.44,70.37849935]
[1770500436577,8.48057551,88.5,88.44,70.37849935]
[1770500436876,10.1761,88.503,88.44,70.37849935]
[1770500437067,8.48133364,88.502,88.44,70.37849935]
[1770500437271,8.48133364,88.501,88.44,70.37849935]
[1770500437466,8.48133364,88.5,88.44,70.37849935]
[1770500437668,8.48133364,88.499,88.44,70.37849935]
[1770500437868,8.48133364,88.498,88.44,70.37849935]
[1770500438073,8.48133364,88.497,88.44,70.37849935]
[1770500438270,8.48133364,88.496,88.44,70.37849935]
[1770500438576,8.48133364,88.495,88.44,70.37849935]
[1770500438776,8.48133364,88.494,88.44,70.37849935]
[1770500438976,10.1761,88.503,88.44,70.37849935]
[1770500439180,8.50051023,88.502,88.451,70.78994092]
[1770500439379,8.50051023,88.501,88.451,70.78994092]
[1770500439581,10.1747,88.515,88.451,70.78994092]
[1770500439782,8.50432982,88.514,88.451,70.78994092]
[1770500439982,8.50432982,88.513,88.451,70.78994092]
[1770500440185,8.50432982,88.512,88.451,70.78994092]
[1770500440380,10.1752,88.51,88.451,70.78994092]
[1770500440683,8.50432982,88.509,88.451,70.78994092]
[1770500440880,8.50432982,88.508,88.451,70.78994092]
[1770500441086,8.50432982,88.507,88.451,70.78994092]
[1770500441275,8.50432982,88.506,88.451,70.78994092]
[1770500441590,8.50432982,88.505,88.451,70.78994092]
[1770500441881,8.50432982,88.504,88.451,70.78994092]
[1770500442081,8.50432982,88.503,88.451,70.78994092]
[1770500442277,10.1752,88.51,88.451,70.78994092]
[1770500442278,8.50432982,88.502,88.451,70.78994092]
[1770500442482,8.50432982,88.501,88.451,70.78994092]
[1770500442685,8.50432982,88.5,88.451,70.78994092]
[1770500442886,8.50432982,88.499,88.451,70.78994092]
[1770500443187,8.50432982,88.498,88.451,70.78994092]
[1770500443382,8.50432982,88.497,88.451,70.78994092]
[1770500443585,8.50432982,88.496,88.451,70.78994092]
[1770500443784,20.92283672,88.537,88.411,33.82]
[1770500443785,13.87606587,88.549,88.491,56.09257422]
[1770500443980,9.28729287,88.58,88.491,56.09257422]
[1770500443981,13.87606587,88.557,88.491,56.09257422]
[1770500444182,13.87606587,88.559,88.491,56.09257422]
[1770500444584,10.1711,88.546,88.491,56.09257422]
[1770500445891,10.1719,88.539,88.491,56.09257422]
[1770500451894,10.1731,88.529,88.491,56.09257422]
[1770500452789,10.1731,88.529,88.409,27.60334124]
[1770500452790,0.54575236,88.579,88.521,55.89806709]
[1770500452991,0.54575236,88.579,88.54,3.71323318]
[1770500454289,3.89910994,88.592,88.55,3.71323318]
[1770500454599,3.89910994,88.592,88.54,58.0673213]
[1770500455396,3.89910994,88.592,88.54,54.35408812]
[1770500455804,4.40849637,88.589,88.54,54.35408812]
[1770500456100,3.76244009,88.587,88.54,54.35408812]
[1770500456302,12.11958019,88.586,88.54,54.35408812]
[1770500456501,12.11958019,88.585,88.54,54.35408812]
[1770500456710,8.3571401,88.584,88.54,54.35408812]
[1770500456910,8.3571401,88.583,88.54,54.35408812]
[1770500457115,3.76244009,88.585,88.54,54.35408812]